Cogmind - Beta 16.1 @@@ ROGUE MODE // 2026.04.10 @ 13:37:50 Player: Maelyn Result: Destroyed by D-53 Grenadier with Mini Grenade Launcher Performance ------------- Evolutions (0) 0 Regions Visited (2) 400 Robots Destroyed (25) 125 Value Destroyed (532) 532 Prototype IDs (0) 0 Alien Tech Used (0) 0 Bonus (0) 0 TOTAL SCORE: 1057 Bonus ------- None Cogmind --------- Core Integrity 0/250 Matter 256/300 Energy 248/250 System Corruption 0% Temperature Cool (60) Movement Walking (190) Ox1 Location -10/Mines Parts ------- > --- POWER (1) -------- Ion Engine > --- PROPULSION (2) --- Aluminum Leg Aluminum Leg > --- UTILITY (2) ------ Medium Storage Unit Hardened Light Armor Plating > --- WEAPON (2) ------- Beam Cannon Grenade Launcher > --- INVENTORY (10) --- Ion Engine Improved Heat Sink High-capacity Storage Unit Signal Interpreter Medium Laser Light Assault Rifle Light Assault Rifle Light Assault Rifle Plasma Cutter Makeshift Sword Peak State ------------ > --- POWER ------------ Ion Engine > --- PROPULSION ------- Aluminum Leg Aluminum Leg > --- UTILITY ---------- Medium Storage Unit Hardened Light Armor Plating > --- WEAPON ----------- Light Assault Rifle Grenade Launcher > --- INVENTORY -------- Ion Engine Improved Heat Sink High-capacity Storage Unit Signal Interpreter Seismic Detector Medium Laser Beam Cannon Light Assault Rifle Light Assault Rifle Plasma Cutter [Rating: 9] Favorites ----------- Power Ion Engine Engine Ion Engine Propulsion Aluminum Leg Treads Light Treads Leg Aluminum Leg Utility Seismic Detector Device Seismic Detector Storage Small Storage Unit Protection Hardened Light Armor Plating Weapon Light Assault Rifle Energy Cannon Beam Cannon Ballistic Gun Light Assault Rifle Launcher Grenade Launcher Build | -11 -10 -10 ------- Run | Yrd Mat Min Slots Evolved . | . . . Power . | . . . Propulsion . | . . . Utility . | . . . Weapon . | . . . Parts Attached 17 | 7 8 2 Power 4 | 1 3 . Engine 4 | 1 3 . Core . | . . . Reactor . | . . . Propulsion 4 | 3 1 . Treads 2 | 2 . . Leg 2 | 1 1 . Wheel . | . . . Hover . | . . . Flight . | . . . Utility 4 | 1 2 1 Device 1 | . 1 . Storage 2 | 1 1 . Processor . | . . . Hackware . | . . . Protection 1 | . . 1 Artifact . | . . . Weapon 5 | 2 2 1 Energy Gun . | . . . Energy Cannon 1 | . . 1 Ballistic Gun 3 | 2 1 . Ballistic Cannon . | . . . Launcher 1 | . 1 . Special Weapon . | . . . Impact Weapon . | . . . Slashing Weapon . | . . . Piercing Weapon . | . . . Special Melee Weapon . | . . . Unidentified Prototypes . | . . . Parts Lost 5 | . 5 . Power 2 | . 2 . Propulsion 2 | . 2 . Utility . | . . . Weapon 1 | . 1 . Highest Loss Streak 4 | . 4 . To Critical Strikes . | . . . Average Backups 7 | 2 7 10 Power . | . . 1 Propulsion . | 1 1 . Utility 2 | . 2 3 Weapon 2 | . 2 4 Tool/Special . | . . . Unused Backups 13 | . 4 9 Power 1 | . 1 . Propulsion . | . . . Utility 5 | . 1 4 Weapon 6 | . 2 4 Tool/Special 1 | . . 1 Average Slot Usage (%) 95 | . 94 100 Engine 13 | . 13 14 Treads 11 | . 14 . Leg 16 | . 13 28 Device 10 | . 10 8 Storage 14 | . 14 14 Ballistic Gun 22 | . 24 9 Launcher 3 | . 1 14 Peak Build Rating 9 | 6 8 9 Average Rating 7 | 4 6 8 On Entrance 4 | . 6 8 Avg Prop Armor Cover (%) 13 | 13 . . Naked Turns . | . . . Heaviest Build 26 | 13 20 26 Greatest Support 40 | 40 40 20 Greatest Overweight (x) 3 | 3 2 1 Average Overweight (x) . | . . . Largest Inventory Capacity 10 | 8 10 10 Average Capacity 8 | 7 8 10 Most Carried 10 | 5 10 10 Average Carried 7 | 2 7 9 Final Capacity 10 | 8 10 10 Final Carried 10 | 4 10 10 Class Distribution -------------------- 100% | Mutant Dominant Class ---------------- Mutant | -10/Materials Mutant | -10/Mines Resources | -11 -10 -10 ----------- Run | Yrd Mat Min Matter Collected 691 | 179 429 83 Remotely . | . . . Salvage Created 623 | . 538 85 Parts 43 | . 37 6 Haulers Intercepted 1 | . 1 . Recyclers Shooed 1 | . 1 . Parts Field Recycled . | . . . Retrieved Matter . | . . . Parts Self-Destructed . | . . . Prevented . | . . . Parts Restored . | . . . Kills | -11 -10 -10 ------- Run | Yrd Mat Min Combat Hostiles Destroyed 20 | . 18 2 Guns 14 | . 14 . AOE 6 | . 4 2 Classes Destroyed 6 | . 6 . Worker 2 | . 1 1 Builder 1 | . 1 . Hauler 1 | . 1 . Watcher 1 | . 1 . Swarmer 9 | . 9 . Grunt 11 | . 9 2 Best Kill Streak 3 | . 3 2 Combat Bots Only 3 | . 3 2 Max Kills in Single Turn 2 | . 2 1 Gunslinging 1 | . 1 . Exploded 2 | . 2 1 Melee . | . . . Uniques/NPCs Destroyed . | . . . Combat | -11 -10 -10 -------- Run | Yrd Mat Min Hostile Shots Fired 143 | . 138 5 Missed 36 | . 36 . Hits 107 | . 102 5 Projectile 107 | . 102 5 AOE 2 | . . 2 Damage Taken 1197 | . 1027 170 Core 257 | . 198 59 Absorbed by Shields . | . . . Core Remaining (%) 100 | 100 . . Volleys Fired 105 | . 99 6 Largest 2 | . 2 2 Hottest 90 | . 50 90 Shots Fired 196 | . 184 12 Gun 183 | . 179 4 Cannon 2 | . . 2 Launcher 11 | . 5 6 Special . | . . . Kinetic 183 | . 179 4 Thermal 2 | . . 2 Explosive 11 | . 5 6 Electromagnetic . | . . . Robot Hit Streak 8 | . 8 6 Robot Miss Streak 6 | . 6 1 Penetration Max . | . . . Secondary Targets 2 | . 2 . Max Gunslinging Chain 1 | . 1 . Shots Hit Robots 113 | . 104 9 Core Hits 52 | . 41 11 Critical Kills . | . . . Critical Parts Destroyed 1 | . 1 . Critical Strikes 1 | . 1 . Destroy 1 | . 1 . Melee Attacks . | . . . Impact . | . . . Slashing . | . . . Piercing . | . . . Sneak Attacks . | . . . Combat Hostiles . | . . . Follow-up Attacks . | . . . Damage Inflicted 1379 | . 1197 182 Guns 988 | . 958 30 Cannons . | . . . Explosions 377 | . 225 152 Melee . | . . . Ramming 14 | . 14 . Kinetic 988 | . 958 30 Thermal . | . . . Explosive 377 | . 225 152 Electromagnetic . | . . . Impact . | . . . Slashing . | . . . Piercing . | . . . Highest Corruption . | . . . Average Corruption . | . . . Corruption Purged . | . . . Corruption Blocked . | . . . Overload Shots . | . . . Overflow Damage . | . . . Projectiles . | . . . Explosions . | . . . Melee . | . . . Knockbacks . | . . . Impact . | . . . Kinetic . | . . . Secondary . | . . . Self-Inflicted Damage 41 | . . 41 Shots 3 | . . 3 Rammed 1 | . 1 . Targets Rammed 2 | . 2 . Kicked 1 | . 1 . Crushed . | . . . Highest Temperature 60 | . 24 60 Average Temperature 10 | . 8 20 Received Heat Transfer 375 | . 351 24 Siege Activations . | . . . Martial Activations . | . . . Shielding Activations . | . . . Robots Disrupted . | . . . Combat Hostiles . | . . . Robots Corrupted . | . . . Combat Hostiles . | . . . Parts Fried . | . . . Impact Corruptions . | . . . Robots Melted . | . . . Combat Hostiles . | . . . Parts Melted . | . . . Heat Transferred . | . . . Parts Sabotaged . | . . . Parts Stolen . | . . . Parts Stripped . | . . . Power Chain Reactions . | . . . Alert | -11 -10 -10 ------- Run | Yrd Mat Min Maximum Alert Level . | . . . Low Security (%) 100 | 100 100 100 Level 1 . | . . . Level 2 . | . . . Level 3 . | . . . Level 4 . | . . . Level 5 . | . . . High Security . | . . . Max Security . | . . . Peak Influence 194 | . 194 158 Initial 75 | . . 75 Average 71 | . 69 104 Influence Increases 745 | . 625 120 Destroy 0b10 Robot/C 400 | . 360 40 Destroy 0b10 Robot/NC 25 | . 20 5 Destroy Leader 94 | . 84 10 Successful Hack 11 | . 11 . Disable Machine 45 | . 15 30 Destroy Structure 50 | . 15 35 Lose Combat Pursuer 120 | . 120 . Influence Decreases 660 | . 431 229 Entered New Map 119 | . . 119 Time Decay 491 | . 381 110 Lost Part 50 | . 50 . Squads Dispatched 5 | . 5 . Investigation 3 | . 3 . Extermination . | . . . Reinforcement 2 | . 2 . Assault . | . . . Garrison . | . . . Intercept . | . . . Searches Triggered . | . . . Construction Impeded . | . . . Haulers Reinforced . | . . . Active Scanning Responses . | . . . Cargo Convoy Interrupts . | . . . Stealth | -11 -10 -10 --------- Run | Yrd Mat Min Distress Signals 3 | . 3 . Communications Jammed . | . . . Distress Signals . | . . . Times Spotted 42 | . 36 6 Peak Tracking Total 6 | . 6 4 Tactical Retreats 7 | . 7 . Traps | -11 -10 -10 ------- Run | Yrd Mat Min Traps Triggered 3 | . 3 . Indirectly . | . . . Trap Hack Attempts . | . . . Triggered . | . . . Disarmed . | . . . Reprogrammed . | . . . Reused . | . . . Traps Extracted . | . . . Installed . | . . . Triggered . | . . . Machines | -11 -10 -10 ---------- Run | Yrd Mat Min Machines Disabled 3 | . 1 2 Max in Single Turn 1 | . 1 1 Machines Repaired . | . . . Machines Dismantled . | . . . Machines Sabotaged . | . . . Overloaded Fab Kills . | . . . Hacking | -11 -10 -10 --------- Run | Yrd Mat Min Machines Accessed 1 | . 1 . Terminals 1 | . 1 . Fabricators . | . . . Repair Stations . | . . . Recycling Units . | . . . Scanalyzers . | . . . Garrison Access . | . . . Total Hacks 6 | . 6 . Successful 3 | . 3 . Failed 3 | . 3 . Catastrophic . | . . . Database Lockouts . | . . . Manual 6 | . 6 . Terminals 6 | . 6 . Fabricators . | . . . Repair Stations . | . . . Recycling Units . | . . . Scanalyzers . | . . . Garrison Access . | . . . Terminal Hacks 2 | . 2 . Robot Analysis 2 | . 2 . Fabricator Hacks . | . . . Repair Station Hacks . | . . . Recycling Unit Hacks . | . . . Scanalyzer . | . . . Garrison Access Hacks . | . . . Unauthorized Hacks 1 | . 1 . Terminals 1 | . 1 . Botnet 1 | . 1 . Fabricators . | . . . Repair Stations . | . . . Recycling Units . | . . . Scanalyzers . | . . . Garrison Access . | . . . Data Cores Recovered . | . . . Used . | . . . Hacking Detections . | . . . Full Trace Events . | . . . Feedback Events . | . . . Feedback Blocked . | . . . Robot Schematics Acquired . | . . . Robots Built . | . . . Authchips . | . . . Time . | . . . Total Robot Build Rating . | . . . Part Schematics Acquired . | . . . Parts Built . | . . . Authchips . | . . . Time . | . . . Total Part Build Rating . | . . . Part Studies Acquired . | . . . Parts Repaired . | . . . Time . | . . . Parts Recycled . | . . . Recycled Matter . | . . . Retrieved Matter . | . . . Retrieved Components . | . . . Parts Scanalyzed . | . . . Part Schematics Acquired . | . . . Parts Damaged . | . . . Bothacking | -11 -10 -10 ------------ Run | Yrd Mat Min Used RIF Installer . | . . . Robots Hacked . | . . . Non-combat . | . . . Combat . | . . . Robot Hacks Applied . | . . . Relay Couplers Released . | . . . Fabnet Peak Effective % . | . . . Robots Rewired . | . . . Allies Hacked . | . . . Hacks Repelled . | . . . Allies | -11 -10 -10 -------- Run | Yrd Mat Min Total Allies . | . . . Largest Group . | . . . Highest-Rated Group . | . . . Highest-Rated Ally . | . . . Total Orders . | . . . Ally Attacks . | . . . Total Damage . | . . . Kills . | . . . Allies Corrupted . | . . . Allies Melted . | . . . Intel | -11 -10 -10 ------- Run | Yrd Mat Min Active Infowar (turns) 1054 | . 924 130 Seismic 1054 | . 924 130 Robot Analysis Total 2 | . 2 . Derelict Logs Recovered . | . . . Drone Launches . | . . . Drone Recoveries . | . . . Exploration | -11 -10 -10 ------------- Run | Yrd Mat Min Turns Passed 1506 | 75 1194 237 Spaces Moved 848 | 38 661 149 Core 10 | 6 4 . Treads 318 | 28 290 . Legs 520 | 4 367 149 Wheels . | . . . Hover . | . . . Flight . | . . . Fastest Speed 50 | 50 120 120 Average Speed 139 | 161 137 144 Slowest Speed 200 | 200 160 190 Overloaded Moves . | . . . Propulsion Burnouts . | . . . Robots Hopped . | . . . Potential Cave-ins . | . . . Cave-ins Triggered . | . . . Exploration Rate (%) 45 | 4 96 35 Regions Visited 2 Branch Regions 1 Pre-discovered Areas . | . . . Known Exits Taken . | . . . Unknown Exits Taken 2 | 1 1 . Scrap Searched 1 | . . 1 Spaces Dug . | . . . Terrain Destroyed 60 | . 15 45 Melee . | . . . Projectile . | . . . AOE 60 | . 15 45 Terrain Rammed . | . . . Walls Destroyed . | . . . Machines Disabled . | . . . Actions | -11 -10 -10 --------- Run | Yrd Mat Min Total 1000 | 49 788 163 Wait . | . . . Move 846 | 37 660 149 Hop . | . . . Pick Up 21 | 5 13 3 Fast Attach 7 | 5 2 . Attach 5 | 1 4 . Detach . | . . . Swap 6 | 1 3 2 Drop 8 | . 5 3 Fire 105 | . 99 6 Melee . | . . . Ram . | . . . Kick 1 | . 1 . Crush 1 | . 1 . Escape Stasis . | . . . Rewire . | . . . Trap . | . . . Miscellaneous . | . . . Route ------- -11/Scrapyard -10/Materials (discovered 6 exits: [*Mat x3] / [*Min x2] / [*Sub]) -10/Mines History --------- Turn | Location | Event 23 | -11/Scrapyard | Discovered new exit (range 15) 76 | -11/Scrapyard | Entered Materials 305 | -10/Materials | Build established: Mutant 702 | -10/Materials | Discovered new exit (range 14) 705 | -10/Materials | Lost 4 parts (1p2n1w) 797 | -10/Materials | Core integrity fell below 50% 868 | -10/Materials | Discovered new exit (range 15) 1050 | -10/Materials | Discovered new exit (range 15) 1119 | -10/Materials | Discovered new exit (range 14) 1176 | -10/Materials | Discovered new exit (range 15) 1187 | -10/Materials | Discovered new exit (range 9) 1270 | -10/Materials | Entered Mines 1323 | -10/Mines | Core integrity fell below 20% 1396 | -10/Mines | A weapon hastily lodged in a ceiling crevice suddenly fell to the ground 1485 | -10/Mines | Assembled infested the area 1507 | -10/Mines | Destroyed by D-53 Grenadier with Mini Grenade Launcher Last Messages --------------- 01404_ Acquired Mak. Sword. 01433_ Searching scrap... 01433_ Found Grenade Launcher. 01433_ Found Seismic Detector. 01433_ Found Terrain Scanner. 01433_ Found Lgt. Assault Rifle. 01433_ Found 35 Matter. 01434_ Acquired 35 matter. 01467_ K-01 Serf collects debris. 01485_ ALERT: Infestation in the mines, dispatching Demolisher response squad. 01499_ C-45 Heavy ARC bursts open, deploying its payload. 01499_ D-53 Grenadier unfolds itself. 01502_ K-01 Serf collects debris. 01503_ K-01 Serf destroyed. 01505_ R-06 Scavenger destroyed. 01505_ K-01 Serf destroyed. 01505_ U-05 Engineer lays Concrete. 01506_ K-01 Serf collects debris. 01506_ U-05 Engineer lays Concrete. Map ----- +----------------------------------------------------+ | ???????????????????????????## #????????## ##### | | ??????????????????????????## ########## #???# | | ??????????????????????????# #???# | | ?????????????????????????# ![! #???# | | ????????????????????????# ### ##########???# | | ????????????????????????# ?????#]#????????????# | | ?????????????????????????# ?????# #????????????# | | ?????????????????????????# ????## #????????????# | | ?????????????????????????# #??## ##???????????# | | ????????????????????????## ### #???????????# | | ?????????????????######## ##??????????# | | ????????????????## """ ##?????????# | | ????????????????# """ ##????????## | | ????????????????# k """ #?????????# | | ???????????????????????# ??? | | ???????????????????????## #### ?? | | ???????????????????????## ##???#### ?? | | ??????????????????###### #????????##### ??? | | ?????????????????## #??????????????? ?? | | ?????????????????# #?????????????????? | | ?????????????????# ##?????????????????? | | ?????????????????## ## ##??????????????????? | | ???????? ????????##??# ##??????????????????? | | ???????? ????????# ###????????????????? | | ????????? ###### = ##???????????????? | | ??????????????# %==@ #???????????????? | | ??????????????# u * %= #???????????????? | | ??????????????######### [ #??????????????? | | ??????????????????????# dd ##??????????????? | | ??????????????????????# # ##???????????????? | | ??????????????????????# #####????????????????? | | ??????????????????????# #????????????????????? | | ??????????????????????# = ##????????????????????? | | ??????????????????????###% #?????????????????????? | | ???????????????????????? ! ?????????????????????? | | ????????????????????????### ?????????????????????? | | ??????????????????????????? ?????????????????????? | | ??????????????????????????? ?????????????????????? | | ???????????????????????????#?????????????????????? | | ?????????????????????????????????????????????????? | | ?????????????????????????????????????????????????? | | ?????????????????????????????????????????????????? | | ?????????????????????????????????????????????????? | | ?????????????????????????????????????????????????? | | ?????????????????????????????????????????????????? | | ?????????????????????????????????????????????????? | | ?????????????????????????????????????????????????? | | ?????????????????????????????????????????????????? | | ?????????????????????????????????????????????????? | | ?????????????????????????????????????????????????? | +----------------------------------------------------+ Best States ------------- Heat Dissipation 25 Energy Generation 10 Energy Capacity 250 Matter Stores 300 Matter Capacity 300 Sight Range 16 Terrain Scan Density 10 Armor Coverage 150 Evasion (%) 55 Recoil Reduction 2 Item Schematics ----------------- None Robot Schematics ------------------ None Fabricated ------------ Nothing Repaired ---------- Nothing Studied --------- None Alien Tech Used ----------------- None Achievements -------------- None Challenges ------------ None Game ------ Seed RingEncryptedDrillbomb Manual? 0 Play Time 00:13:45 Cumulative 32.3 hours Start 2026.04.10 @ 13:26:00 End 2026.04.10 @ 13:37:50 Sessions 1 Manual Loads 0 Difficulty Rogue Special Mode None Game No. 89 Rogue 89 Adventurer 0 Explorer 0 Win Type - Total 0 Types 0/0/0/0/0/0/0/0/0/0 Lore% 14 Gallery% 23 Achievement% 15 Wizard Run 0 Options --------- Layout 2 ASCII 0 Keyboard 1 Movement Vi Keybinds 0 Fullscreen 2 Font 20/Terminus Map View 64x51 Zoom Use 0% Tactical HUD 1 Map Filters NONE Filters NONE Steam 1 RUN: 36c3151f-f8df-4b9f-b5c4-4605c198ef2e